fUSD/lending_fUSD_20240726
["ID","MTS","AMOUNT","RATE_DAILY","PERIOD"]
[333231419,1721955034237,-501.3,0.00010999,2]
[333231420,1721955034247,-501.3,0.00010999,2]
[333231421,1721955034256,-501.3,0.00010999,2]
[333231422,1721955034265,-501.3,0.00010999,2]
[333231423,1721955034275,-501.36,0.00010999,2]
[333231424,1721955034284,-343.2259855,0.00010999,2]
[333231425,1721955034294,-500.0,0.00010999,2]
[333231426,1721955034304,-161.21,0.00010999,2]
[333231427,1721955034314,-355.41,0.00010999,2]
[333231428,1721955034324,-500.0,0.00010999,2]
[333231429,1721955034333,-500.0,0.00010999,2]
[333231430,1721955034343,-500.0,0.00010999,2]
[333231431,1721955034353,-500.0,0.00010999,2]
[333231432,1721955034362,-500.0,0.00010999,2]
[333231433,1721955034372,-500.0,0.00010999,2]
[333231434,1721955034381,-500.0,0.00010999,2]
[333231435,1721955034391,-500.0,0.00010999,2]
[333231436,1721955034400,-500.0,0.00010999,2]
[333231437,1721955034410,-500.0,0.00010999,2]
[333231438,1721955034419,-500.0,0.00010999,2]
[333231439,1721955034429,-500.0,0.00010999,2]
[333231440,1721955034438,-500.0,0.00010999,2]
[333231441,1721955034448,-174.18,0.00010999,2]
[333231442,1721955034457,-602.74,0.00010999,2]
[333231443,1721955034467,-602.74,0.00010999,2]
[333231444,1721955034477,-602.74,0.00010999,2]
[333231445,1721955034487,-602.74,0.00010999,2]
[333231446,1721955034497,-602.74,0.00010999,2]
[333231447,1721955034507,-602.74,0.00010999,2]
[333231448,1721955034516,-602.74,0.00010999,2]
[333231449,1721955034526,-602.74,0.00010999,2]
[333231450,1721955034535,-602.74,0.00010999,2]
[333231451,1721955034545,-602.74,0.00010999,2]
[333231452,1721955034554,-602.74,0.00010999,2]
[333231453,1721955034565,-602.74,0.00010999,2]
[333231454,1721955034575,-602.74,0.00010999,2]
[333231455,1721955034584,-602.74,0.00010999,2]
[333231456,1721955034594,-602.74,0.00010999,2]
[333231457,1721955034603,-602.74,0.00010999,2]
[333231458,1721955034613,-602.74,0.00010999,2]
[333231459,1721955034623,-602.74,0.00010999,2]
[333231460,1721955034633,-602.74,0.00010999,2]
[333231461,1721955034642,-602.74,0.00010999,2]
[333231462,1721955034652,-602.74,0.00010999,2]
[333231463,1721955034663,-602.74,0.00010999,2]
[333231464,1721955034672,-602.74,0.00010999,2]
[333231465,1721955034681,-716.01,0.00010999,2]
[333231466,1721955034690,-716.01,0.00010999,2]
[333231467,1721955034699,-716.01,0.00010999,2]
[333231468,1721955034709,-716.01,0.00010999,2]
[333231469,1721955034718,-716.01,0.00010999,2]
[333231470,1721955034727,-716.01,0.00010999,2]
[333231471,1721955034737,-716.01,0.00010999,2]
[333231472,1721955034746,-716.01,0.00010999,2]
[333231473,1721955034756,-500.0,0.00010999,2]
[333231474,1721955034765,-716.01,0.00010999,2]
[333231475,1721955034775,-716.01,0.00010999,2]
[333231476,1721955034784,-716.01,0.00010999,2]
[333231477,1721955034794,-716.01,0.00010999,2]
[333231478,1721955034803,-716.01,0.00010999,2]
[333231479,1721955034812,-716.01,0.00010999,2]
[333231480,1721955034822,-716.01,0.00010999,2]
[333231481,1721955034832,-716.01,0.00010999,2]
[333231482,1721955034842,-716.01,0.00010999,2]
[333231483,1721955034851,-500.0,0.00010999,2]
[333231484,1721955034861,-716.01,0.00010999,2]
[333231485,1721955034871,-716.01,0.00010999,2]
[333231486,1721955034881,-716.01,0.00010999,2]
[333231487,1721955034890,-716.01,0.00010999,2]
[333231488,1721955034900,-716.01,0.00010999,2]
[333231489,1721955034910,-716.01,0.00010999,2]
[333231490,1721955034920,-500.0,0.00010999,2]
[333231491,1721955034929,-716.17,0.00010999,2]
[333231492,1721955034940,-500.0,0.00010999,2]
[333231493,1721955034950,-500.0,0.00010999,2]
[333231494,1721955034962,-500.0,0.00010999,2]
[333231495,1721955034971,-500.0,0.00010999,2]
[333231496,1721955034981,-500.0,0.00010999,2]
[333231497,1721955034990,-500.0,0.00010999,2]
[333231498,1721955035001,-500.0,0.00010999,2]
[333231499,1721955035011,-500.0,0.00010999,2]
[333231500,1721955035021,-500.0,0.00010999,2]
[333231501,1721955035030,-241.97,0.00010999,2]
[333231502,1721955035040,-500.0,0.00010999,2]
[333231503,1721955035051,-534.56,0.00010999,2]
[333231504,1721955035061,-500.0,0.00010999,2]
[333231505,1721955035071,-500.0,0.00010999,2]
[333231506,1721955035080,-500.0,0.00010999,2]
[333231507,1721955035090,-500.0,0.00010999,2]
[333231508,1721955035099,-304.67,0.00010999,2]
[333231509,1721955035108,-201.65,0.00010999,2]
[333231510,1721955035118,-2803.32981479,0.00010999,2]
[333231511,1721955035128,-500.0,0.00010999,2]
[333231512,1721955035138,-500.0,0.00010999,2]
[333231513,1721955035148,-500.0,0.00010999,2]
[333231514,1721955035158,-500.0,0.00010999,2]
[333231515,1721955035167,-500.0,0.00010999,2]
[333231516,1721955035176,-500.0,0.00010999,2]
[333231517,1721955035185,-469.77,0.00010999,2]
[333231518,1721955035195,-500.0,0.00010999,2]
[333231519,1721955035204,-500.0,0.00010999,2]
[333231520,1721955035213,-500.0,0.00010999,2]
[333231521,1721955035222,-500.0,0.00010999,2]
[333231522,1721955035231,-500.0,0.00010999,2]
[333231523,1721955035240,-500.0,0.00010999,2]
[333231524,1721955035251,-153.53463171,0.00010999,2]
[333231525,1721955035260,-500.0,0.00010999,2]
[333231526,1721955035270,-500.0,0.00010999,2]
[333231527,1721955035279,-500.0,0.00010999,2]
[333231528,1721955035288,-500.0,0.00010999,2]
[333231529,1721955035298,-500.0,0.00010999,2]
[333231530,1721955035307,-500.0,0.00010999,2]
[333231531,1721955035319,-500.0,0.00010999,2]
[333231532,1721955035328,-517.05,0.00010999,2]
[333231533,1721955035341,-500.0,0.00010999,2]
[333231534,1721955035350,-500.0,0.00010999,2]
[333231535,1721955035360,-500.0,0.00010999,2]
[333231536,1721955035369,-371.8,0.00010999,2]
[333231537,1721955035378,-500.0,0.00010999,2]
[333231538,1721955035388,-500.0,0.00010999,2]
[333231539,1721955035397,-263.46,0.00010999,2]
[333231540,1721955035407,-500.0,0.00010999,2]
[333231541,1721955035417,-500.0,0.00010999,2]
[333231542,1721955035426,-432.45,0.00010999,2]
[333231543,1721955035436,-4136.8,0.00010999,2]
[333231544,1721955035445,-4136.8,0.00010999,2]
[333231545,1721955035454,-4136.8,0.00010999,2]
[333231546,1721955035464,-4136.8,0.00010999,2]
[333231547,1721955035473,-4136.8,0.00010999,2]
[333231548,1721955035482,-791.66,0.00010999,2]
[333231549,1721955035492,-4136.8,0.00010999,2]
[333231550,1721955035501,-791.66,0.00010999,2]
[333231551,1721955035510,-117912.70813803,0.00011,2]
[333231552,1721955035520,-12903.11366,0.00011,2]
[333231553,1721955035548,-415.98592689,0.00010999,2]
[333231554,1721955035558,-447.64794776,0.00010999,2]
[333231555,1721955035571,-1202.46363093,0.00010999,2]
[333231556,1721955035594,-2070.70249442,0.00010999,2]
[333231557,1721955035603,-3080.29750558,0.00011,2]
[333231568,1721955038313,-150.089,0.0001097,2]
[333231570,1721955038323,-791.66,0.00010999,2]
[333231572,1721955038335,-144.1472,0.00010999,2]
[333231574,1721955038347,-618.95206319,0.00010999,2]
[333231581,1721955038426,-28.56073681,0.00010999,2]
[333231582,1721955038435,-1907.48014348,0.00010999,2]
[333231583,1721955038475,-267.33001556,0.00010999,2]
[333231584,1721955038491,-500.0,0.00010999,2]
[333231585,1721955038503,-1461.98984096,0.00010999,2]
[333231586,1721955038513,-791.66,0.00010999,2]
[333231587,1721955038522,-721.85015904,0.00010999,2]
[333231588,1721955038534,-69.80984096,0.00010999,2]
[333231589,1721955038544,-1541.61032985,0.00010999,2]
[333231590,1721955038556,-463.4202856,0.00010999,2]
[333231591,1721955038572,-446.9083603,0.00010999,2]
[333231592,1721955038584,-743.53478048,0.00010999,2]
[333231593,1721955038597,-941.32624377,0.00010999,2]
[333231594,1721955038606,-535.05758632,0.00010999,2]
[333231596,1721955038618,-3601.74241368,0.00010999,2]
[333231598,1721955038628,-4136.8,0.00010999,2]
[333231600,1721955038637,-791.66,0.00010999,2]
[333231601,1721955038647,-791.66,0.00010999,2]
[333231603,1721955038657,-4136.8,0.00010999,2]
[333231605,1721955038666,-791.66,0.00010999,2]
[333231607,1721955038675,-4136.8,0.00010999,2]
[333231609,1721955038685,-791.66,0.00010999,2]
[333231611,1721955038694,-4136.8,0.00010999,2]
[333231613,1721955038703,-791.66,0.00010999,2]
[333231615,1721955038713,-4136.8,0.00010999,2]
[333231616,1721955038722,-791.66,0.00010999,2]
[333231618,1721955038732,-4136.8,0.00010999,2]
[333231620,1721955038742,-791.66,0.00010999,2]
[333231621,1721955038751,-2290.63471677,0.00010999,2]
[333231622,1721955038764,-1000.00000014,0.00010999,2]
[333231623,1721955038776,-846.16528309,0.00010999,2]
[333231624,1721955038786,-1439.09695465,0.00010999,2]
[333231625,1721955038803,-459.01463883,0.00010999,2]
[333231626,1721955038819,-1003.49220315,0.00010999,2]
[333231628,1721955040614,-455.28848318,9.607e-05,2]
[333231629,1721955040626,-4848.22281682,9.607e-05,2]
[333231630,1721955040635,-261.248,0.0001097,2]
[333231631,1721955040645,-185.875,0.0001097,2]
[333231632,1721955040655,-260.608,0.0001097,2]
[333231633,1721955040665,-1235.19620337,0.00010999,2]
[333231634,1721955040675,-791.66,0.00010999,2]
[333231635,1721955040684,-791.66,0.00010999,2]
[333231636,1721955040694,-791.66,0.00010999,2]
[333231637,1721955040703,-477.79037353,0.00010999,2]
[333231638,1721955040718,-313.86962647,0.00010999,2]
[333231639,1721955040727,-203.13037353,0.00010999,2]
[333231640,1721955040740,-3933.66962647,0.00010999,2]
[333231641,1721955040750,-791.66,0.00010999,2]
[333231642,1721955040759,-4136.8,0.00010999,2]
[333231643,1721955040769,-791.66,0.00010999,2]
[333231644,1721955040779,-4136.8,0.00010999,2]
[333231645,1721955040789,-791.66,0.00010999,2]
[333231646,1721955040798,-4136.8,0.00010999,2]
[333231647,1721955040808,-791.66,0.00010999,2]
[333231648,1721955040819,-4136.99761401,0.00010999,2]
[333231649,1721955040828,-791.66,0.00010999,2]
[333231650,1721955040838,-791.66,0.00010999,2]
[333231651,1721955040848,-791.82,0.00010999,2]
[333231652,1721955040858,-1472.70440347,0.00011,2]
[333231653,1721955040874,-8263.86627251,0.00011,2]
[333231654,1721955040886,-4710.83907877,0.00011,2]
[333231655,1721955040898,-4609.19369259,0.00011,2]
[333231656,1721955040909,-2109.97814077,0.00011,2]
[333231657,1721955040921,-5441.758176,0.00011,2]
[333231658,1721955040932,-1156.2,0.00011,2]
[333231660,1721955040943,-637.17304018,0.00011,2]
[333231661,1721955040956,-368.04046622,0.00011,2]
[333231662,1721955040967,-473.28023069,0.00011,2]
[333231663,1721955040978,-1917.30000001,0.00011,2]
[333231664,1721955040989,-3304.77660869,0.00011,2]
[333231666,1721955041009,-292308.41320447,0.00011,2]
[333231668,1721955041020,-169275.3581515,0.00011,2]
[333231670,1721955041031,-571.61863789,0.00011,2]
[333231672,1721955041043,-290.25892101,0.00011,2]
[333231674,1721955041056,-319.325,0.00011,2]
[333231677,1721955043358,-515.811067,0.00011,2]
[333231678,1721955043369,-475.33246739,0.00011,2]
[333231679,1721955043471,-412.1753019,0.00011,2]
[333231680,1721955043483,-33059.82724574,0.00011,2]
[333231681,1721955043534,-772.1299993,0.00011,2]
[333231682,1721955043545,-716.30002,0.00011,2]
[333231683,1721955043592,-531.63488067,0.00011,2]
[333231684,1721955043603,-1211.00213444,0.00011,2]
[333231685,1721955043651,-499.44131326,0.00011,2]
[333231686,1721955043662,-2340.0,0.00011,2]
[333231689,1721955046403,-193.595,0.0001097,2]
[333231690,1721955046413,-74.655,0.0001097,2]
[333231691,1721955046425,-128.81,0.0001097,2]
[333231692,1721955046436,-613.16,0.00011,2]
[333231693,1721955046447,-7322.1963555,0.00011,2]
[333231694,1721955046458,-1323.78,0.00011,2]
[333231695,1721955046494,-387.37588668,0.00011,2]
[333231696,1721955046505,-427.09768934,0.00011,2]
[333231697,1721955046588,-3789.71619584,0.00011,2]
[333231698,1721955046759,-2733.80274664,0.00011,2]
[333231700,1721955334898,2000.0,0.00015,30]
[333231701,1721955359477,1287.42,7.007e-05,2]
[333231702,1721955877927,70148.1196388,7.007e-05,2]
[333231703,1721955929164,7055.92015338,7.007e-05,2]
[333231712,1721956231593,-399.12662878,8.289e-05,2]
[333231713,1721956231605,-199.01337122,8.289e-05,2]
[333231714,1721956231614,-250.0,9.905e-05,2]
[333231715,1721956231624,-3431.48984544,0.0001,2]
[333231716,1721956231677,-1568.51015456,0.0001,2]
[333231717,1721956231686,-158.90617348,0.00010071,2]
[333231718,1721956231695,-1000.0,0.00010202,2]
[333231719,1721956231704,-72.57367196,0.00010253,2]
[333231720,1721956231715,-86.33250149,0.00010253,2]
[333231721,1721956231724,-263.66749851,0.00010377,2]
[333231722,1721956231735,-36.33250149,0.00010377,2]
[333231723,1721956231744,-530.01,0.00010378,2]
[333231724,1721956231753,-150.0,0.00010378,2]
[333231725,1721956231763,-150.0,0.00010378,2]
[333231726,1721956231772,-150.0,0.00010378,2]
[333231727,1721956231781,-304.28,0.00010378,2]
[333231728,1721956231790,-150.0,0.00010378,2]
[333231729,1721956231801,-530.01,0.00010378,2]
[333231730,1721956231810,-300.0,0.00010378,2]
[333231731,1721956231819,-435.662197,0.00010383,2]
[333231732,1721956231828,-530.01,0.000104,2]
[333231733,1721956231838,-158.90617345,0.00010436,2]
[333231734,1721956231848,-150.0,0.00010499,2]
[333231735,1721956231857,-733.84568119,0.000105,2]
[333231736,1721956231868,-522.58091288,0.000105,2]
[333231737,1721956231879,-334.50747262,0.000105,2]
[333231738,1721956231891,-802.69538565,0.000105,2]
[333231746,1721956232873,-3007.75707523,0.000105,2]
[333231747,1721956232883,-150.0,0.000105,2]
[333231748,1721956232892,-536.58,0.000105,2]
[333231749,1721956232902,-150.0,0.000105,2]
[333231750,1721956232911,-150.0,0.000105,2]
[333231751,1721956232921,-165.31,0.000105,2]
[333231752,1721956232930,-150.0,0.000105,2]
[333231753,1721956232940,-530.01,0.000105,2]
[333231754,1721956232949,-150.0,0.000105,2]
[333231755,1721956232959,-165.01,0.000105,2]
[333231756,1721956232969,-150.0,0.000105,2]
[333231757,1721956232979,-150.0,0.000105,2]
[333231758,1721956232989,-530.01,0.000105,2]
[333231759,1721956232999,-150.0,0.000105,2]
[333231760,1721956233009,-150.0,0.000105,2]
[333231761,1721956233018,-598.14,0.00010553,2]
[333231762,1721956233028,-530.01,0.000106,2]
[333231763,1721956233038,-24.42783767,0.000106,2]
[333231764,1721956233052,-140.91216233,0.000106,2]
[333231765,1721956233062,-168.84096769,0.000106,2]
[333231766,1721956233101,-56.12903231,0.000106,2]
[333231767,1721956233111,-150.0,0.000106,2]
[333231768,1721956233120,-150.0,0.000106,2]
[333231769,1721956233131,-355.47096769,0.000106,2]
[333231770,1721956233142,-287.22510096,0.000106,2]
[333231771,1721956233154,-68.68393135,0.000106,2]
[333231772,1721956233164,-150.0,0.000106,2]
[333231773,1721956233174,-443.86441482,0.000106,2]
[333231774,1721956233185,-86.14558518,0.000106,2]
[333231775,1721956233195,-150.0,0.000106,2]
[333231776,1721956233207,-150.0,0.000106,2]
[333231777,1721956233218,-165.34,0.000106,2]
[333231778,1721956233228,-150.0,0.000106,2]
[333231779,1721956233238,-158.90617345,0.00010618,2]
[333231780,1721956233248,-158.90617345,0.000108,2]
[333231781,1721956233259,-3651.28347159,0.00010889,2]
[333231782,1721956233271,-2497.40548677,0.00010889,2]
[333231783,1721956233283,-1066.31104164,0.00010889,2]
[333231784,1721956233293,-3000.0,0.0001089,2]
[333231785,1721956233303,-278.7451,0.00010895,2]
[333231786,1721956233313,-1000.0,0.00010898,2]
[333231787,1721956233323,-7500.0,0.00010898,2]
[333231788,1721956233333,-813.93240786,0.00010899,2]
[333231793,1721956237686,-155.0,0.0001,2]
[333231794,1721956237696,-349.3514221,0.00010899,2]
[333231795,1721956237707,-1243.206994,0.00010899,2]
[333231796,1721956237718,-549.63035964,0.00010899,2]
[333231797,1721956237851,-544.58067937,0.00010899,2]
[333231798,1721956237863,-3641.2040372,0.00010899,2]
[333231815,1721956239665,-44650.85809983,0.00010899,2]
[333231816,1721956239675,-1205.00671465,0.000109,2]
[333231817,1721956239686,-326.8152267,0.000109,2]
[333231818,1721956240606,-1139.11643078,0.000109,2]
[333231819,1721956240618,-23792.85499929,0.000109,2]
[333231820,1721956240628,-314.97056113,0.000109,2]
[333231821,1721956240767,-661.0,0.000109,2]
[333231822,1721956240847,-1080.12089287,0.000109,2]
[333231823,1721956240858,-803.14,0.000109,2]
[333231824,1721956240870,-2789.15888872,0.000109,2]
[333231825,1721956240887,-3108.12795836,0.000109,2]
[333231826,1721956241000,-3892.2627275,0.000109,2]
[333231827,1721956241010,-177.42557793,0.000109,2]
[333231828,1721956241019,-209.63212771,0.000109,2]
[333231829,1721956241029,-198.93660931,0.000109,2]
[333231830,1721956241039,-250.0,0.00010959,2]
[333231831,1721956241051,-169.623,0.0001097,2]
[333231832,1721956241060,-166.0,0.0001097,2]
[333231833,1721956241070,-445.0,0.0001097,2]
[333231834,1721956241080,-157.072609,0.00010997,2]
[333231836,1721956241089,-157.072609,0.00010997,2]
[333231838,1721956241098,-157.072609,0.00010997,2]
[333231840,1721956241107,-157.072609,0.00010997,2]
[333231842,1721956241116,-123.94728654,0.00010997,2]
[333232005,1721956242727,-155.0,0.0001,2]
[333232007,1721956242737,-33.12532246,0.00010997,2]
[333232009,1721956242746,-157.072609,0.00010997,2]
[333232011,1721956242756,-157.072609,0.00010997,2]
[333232013,1721956242765,-157.072609,0.00010997,2]
[333232015,1721956242775,-151.072609,0.00010997,2]
[333232017,1721956242784,-151.072609,0.00010997,2]
[333232019,1721956242793,-151.072609,0.00010997,2]
[333232021,1721956242805,-151.072609,0.00010997,2]
[333232023,1721956242814,-151.072609,0.00010997,2]
[333232025,1721956242823,-151.072609,0.00010997,2]
[333232027,1721956242832,-151.072609,0.00010997,2]
[333232029,1721956242842,-151.072609,0.00010997,2]
[333232031,1721956242851,-151.072609,0.00010997,2]
[333232033,1721956242860,-151.072609,0.00010997,2]
[333232034,1721956242870,-151.072609,0.00010997,2]
[333232036,1721956242879,-57.38892434,0.00010997,2]
[333232040,1721956242904,-442.61107566,0.00010997,2]
[333232042,1721956242913,-500.0,0.00010997,2]
[333232044,1721956242921,-16.88892434,0.00010997,2]
[333232046,1721956242932,-483.11107566,0.00010997,2]
[333232048,1721956242941,-500.0,0.00010997,2]
[333232050,1721956242951,-500.0,0.00010997,2]
[333232052,1721956242960,-248.48892434,0.00010997,2]
[333232316,1721956245784,-251.51107566,0.00010997,2]
[333232318,1721956245793,-236.4321613,0.00010997,2]
[333232381,1721956246421,-263.5678387,0.00010997,2]
[333232383,1721956246431,-500.0,0.00010997,2]
[333232385,1721956246441,-424.7821613,0.00010997,2]
[333232387,1721956246452,-75.2178387,0.00010997,2]
[333232389,1721956246462,-500.0,0.00010997,2]
[333232391,1721956246472,-500.0,0.00010997,2]
[333232393,1721956246482,-500.0,0.00010997,2]
[333232395,1721956246491,-500.0,0.00010997,2]
[333232397,1721956246500,-14.7126613,0.00010997,2]
[333232399,1721956246511,-485.2873387,0.00010997,2]
[333232401,1721956246525,-500.0,0.00010997,2]
[333232403,1721956246534,-500.0,0.00010997,2]
[333232404,1721956246543,-500.0,0.00010997,2]
[333232406,1721956246552,-500.0,0.00010997,2]
[333232408,1721956246565,-85.13159398,0.00010997,2]
[333232565,1721957431900,-679.0,8.218e-05,2]
[333232566,1721957431910,-966.38024953,8.219e-05,2]
[333232567,1721957431919,-618.47,8.219e-05,2]
[333232569,1721957431929,-209.71,8.219e-05,2]
[333232571,1721957431938,-230.60960874,9e-05,2]
[333232573,1721957431947,-250.0,9.396e-05,2]
[333232574,1721957431956,-6345.01380337,9.428e-05,2]
[333232589,1721957432084,-8763.15619663,9.428e-05,2]
[333232590,1721957432099,-882.93,9.532e-05,2]
[333232591,1721957432109,-1000.0,9.571e-05,2]
[333232592,1721957432119,-155.8,9.572e-05,2]
[333232593,1721957432128,-1897.27,9.617e-05,2]
[333232594,1721957432137,-6168.59,9.688e-05,2]
[333232595,1721957432146,-808.37,9.75e-05,2]
[333232596,1721957432156,-188.15773052,9.888e-05,2]
[333232597,1721957432166,-600.0,9.9e-05,3]
[333232598,1721957432176,-150.0,9.999e-05,2]
[333232599,1721957432185,-5000.0,0.0001,2]
[333232600,1721957432195,-412.49430383,0.0001,2]
[333232601,1721957432206,-181.54289042,0.0001,2]
[333232602,1721957432215,-1300.0,0.0001,3]
[333232603,1721957432225,-537.43282868,0.0001,2]
[333232604,1721957432234,-2000.0,0.000101,3]
[333232605,1721957432244,-2700.0,0.000102,3]
[333232606,1721957432254,-687.05594925,0.0001029,2]
[333232607,1721957432263,-3400.0,0.000103,3]
[333232608,1721957432273,-530.01,0.00010378,2]
[333232609,1721957432282,-600.0,0.000104,3]
[333232610,1721957432291,-618.47,0.00010452,2]
[333232611,1721957432300,-600.0,0.000105,3]
[333232612,1721957432309,-600.0,0.000106,3]
[333232613,1721957432318,-600.0,0.000107,3]
[333232614,1721957432328,-1000.0,0.00010767,2]
[333232615,1721957432337,-183.05102511,0.00010798,2]
[333232616,1721957432346,-1300.0,0.000108,3]
[333232617,1721957432356,-194.17216175,0.00010897,2]
[333232618,1721957432365,-194.17216175,0.00010898,2]
[333232619,1721957432374,-4585.3744,0.00010898,2]
[333232620,1721957432383,-1000.0,0.00010898,2]
[333232621,1721957432393,-1690.5098,0.00010898,2]
[333232622,1721957432403,-3193.4503,0.00010898,2]
[333232623,1721957432412,-1303.5387,0.00010898,2]
[333232624,1721957432421,-4209.8537,0.00010898,2]
[333232625,1721957432430,-22266.6348,0.00010898,2]
[333232626,1721957432439,-40259.7151,0.00010898,2]
[333232627,1721957432448,-363.7067,0.00010898,2]
[333232628,1721957432457,-194.17216175,0.00010899,2]
[333232629,1721957432466,-3211.8173,0.00010899,2]
[333232630,1721957432475,-1272.84000849,0.00010899,2]
[333232631,1721957432484,-1272.84000845,0.00010899,2]
[333232632,1721957432493,-1272.84000845,0.00010899,2]
[333232633,1721957432502,-1272.84000845,0.00010899,2]
[333232634,1721957432511,-1272.84000845,0.00010899,2]
[333232635,1721957432520,-1272.84000845,0.00010899,2]
[333232636,1721957432529,-1272.84000845,0.00010899,2]
[333232637,1721957432539,-1272.84000845,0.00010899,2]
[333232638,1721957432548,-1272.84000845,0.00010899,2]
[333232639,1721957432558,-198887.06782671,0.00010899,2]
[333232640,1721957432567,-3937.72963308,0.00010899,2]
[333232641,1721957432576,-3937.72963303,0.00010899,2]
[333232642,1721957432585,-3937.72963303,0.00010899,2]
[333232643,1721957432594,-3937.72963303,0.00010899,2]
[333232644,1721957432604,-3937.72963303,0.00010899,2]
[333232645,1721957432613,-3937.72963303,0.00010899,2]
[333232646,1721957432623,-3937.72963303,0.00010899,2]
[333232647,1721957432632,-3937.72963303,0.00010899,2]
[333232648,1721957432641,-3937.72963303,0.00010899,2]
[333232649,1721957432649,-194.17216175,0.00010899,2]
[333232650,1721957432658,-483.401142,0.000109,2]
[333232651,1721957432667,-194.55896153,0.000109,2]
[333232652,1721957432676,-1272.84000845,0.000109,2]
[333232653,1721957432685,-194.17216175,0.000109,2]
[333232654,1721957432695,-3937.72963303,0.000109,2]
[333232655,1721957432704,-496.19,0.00010959,2]
[333232656,1721957432713,-250.0,0.00010959,2]
[333232657,1721957432723,-500.0,0.00010996,2]
[333232658,1721957432733,-529.36410045,0.00010996,2]
[333232659,1721957432742,-500.0,0.00010996,2]
[333232660,1721957432751,-500.0,0.00010996,2]
[333232661,1721957432760,-509.82,0.00010996,2]
[333232662,1721957432769,-500.0,0.00010996,2]
[333232663,1721957432778,-500.0,0.00010996,2]
[333232664,1721957432787,-586.03,0.00010996,2]
[333232665,1721957432796,-500.0,0.00010996,2]
[333232666,1721957432807,-500.0,0.00010996,2]
[333232667,1721957432816,-500.0,0.00010996,2]
[333232668,1721957432825,-500.0,0.00010996,2]
[333232669,1721957432834,-500.0,0.00010996,2]
[333232670,1721957432843,-500.0,0.00010996,2]
[333232671,1721957432851,-500.0,0.00010996,2]
[333232672,1721957432860,-500.0,0.00010996,2]
[333232673,1721957432869,-500.0,0.00010996,2]
[333232674,1721957432878,-500.0,0.00010996,2]
[333232675,1721957432886,-500.0,0.00010996,2]
[333232676,1721957432895,-612.21,0.00010996,2]
[333232677,1721957432905,-500.0,0.00010996,2]
[333232678,1721957432914,-500.0,0.00010996,2]
[333232679,1721957432923,-500.0,0.00010996,2]
[333232680,1721957432931,-500.0,0.00010996,2]
[333232681,1721957432940,-500.0,0.00010996,2]
[333232682,1721957432949,-504.30455549,0.00010996,2]
[333232683,1721957432958,-500.0,0.00010996,2]
[333232684,1721957432967,-500.0,0.00010996,2]
[333232685,1721957432977,-500.0,0.00010996,2]
[333232686,1721957432986,-502.32788696,0.00010996,2]
[333232687,1721957432994,-500.0,0.00010996,2]
[333232688,1721957433003,-500.0,0.00010996,2]
[333232689,1721957433013,-537.90928096,0.00010996,2]
[333232690,1721957433022,-509.00613786,0.00010996,2]
[333232691,1721957433031,-500.0,0.00010996,2]
[333232692,1721957433040,-500.0,0.00010996,2]
[333232693,1721957433049,-500.0,0.00010996,2]
[333232694,1721957433060,-501.43091153,0.00010996,2]
[333232695,1721957433069,-594.64799736,0.00010996,2]
[333232696,1721957433078,-500.0,0.00010996,2]
[333232697,1721957433089,-500.0,0.00010996,2]
[333232698,1721957433098,-500.0,0.00010996,2]